[Event "*** Titled Tuesday Blitz"]
[Site "Chess.com"]
[Date "2021.03.30"]
[Round "4"]
[White "Genghis_K"]
[Black "maximnovik"]
[Result "1-0"]
[WhiteElo "2942"]
[BlackElo "2556"]
[TimeControl "180+1"]
[EndTime "10:36:40 PDT"]
[Termination "Genghis_K won by resignation"]

1. e4 {[%clk 0:02:56.4]} 1... c6 {[%clk 0:02:58.9]} 2. Nf3 {[%clk 0:02:56.1]}
2... d5 {[%clk 0:02:59.3]} 3. d3 {[%clk 0:02:57]} 3... dxe4 {[%clk 0:02:58.6]}
4. dxe4 {[%clk 0:02:57.9]} 4... Qxd1+ {[%clk 0:02:58.5]} 5. Kxd1 {[%clk
0:02:58.8]} 5... Nf6 {[%clk 0:02:57.1]} 6. Nbd2 {[%clk 0:02:59.3]} 6... Bg4
{[%clk 0:02:33.8]} 7. Bd3 {[%clk 0:02:58.5]} 7... Nbd7 {[%clk 0:02:32.7]} 8. h3
{[%clk 0:02:58.5]} 8... Bxf3+ {[%clk 0:02:32]} 9. Nxf3 {[%clk 0:02:59.4]} 9...
Nc5 {[%clk 0:02:32]} 10. Nd2 {[%clk 0:02:42.2]} 10... O-O-O {[%clk 0:02:23.7]}
11. Ke2 {[%clk 0:02:42.2]} 11... e6 {[%clk 0:02:15.3]} 12. Rd1 {[%clk
0:02:41.8]} 12... Nxd3 {[%clk 0:02:14.5]} 13. cxd3 {[%clk 0:02:41.8]} 13... Bc5
{[%clk 0:02:13.9]} 14. Nb3 {[%clk 0:02:41.3]} 14... Bb6 {[%clk 0:02:13.9]} 15.
a4 {[%clk 0:02:41.9]} 15... a6 {[%clk 0:02:08.1]} 16. a5 {[%clk 0:02:41.2]}
16... Ba7 {[%clk 0:02:07.3]} 17. Be3 {[%clk 0:02:42.1]} 17... Kb8 {[%clk
0:02:05]} 18. Ra3 {[%clk 0:02:39.1]} 18... e5 {[%clk 0:02:01.8]} 19. Nc5 {[%clk
0:02:36.5]} 19... Nd7 {[%clk 0:01:45.3]} 20. b4 {[%clk 0:02:31]} 20... Bxc5
{[%clk 0:01:27.2]} 21. bxc5 {[%clk 0:02:31.9]} 21... Nf8 {[%clk 0:01:26.8]} 22.
d4 {[%clk 0:02:25.6]} 22... exd4 {[%clk 0:01:22.7]} 23. Rxd4 {[%clk 0:02:18.7]}
23... Ne6 {[%clk 0:01:21.3]} 24. Rxd8+ {[%clk 0:02:18.6]} 24... Rxd8 {[%clk
0:01:20.4]} 25. Rd3 {[%clk 0:02:19.2]} 25... Rxd3 {[%clk 0:01:15.2]} 26. Kxd3
{[%clk 0:02:20.1]} 26... Kc7 {[%clk 0:01:14]} 27. f4 {[%clk 0:02:20.7]} 27... f6
{[%clk 0:01:11.7]} 28. g4 {[%clk 0:02:20.4]} 28... Kd7 {[%clk 0:01:11.5]} 29. f5
{[%clk 0:02:18.6]} 29... Nc7 {[%clk 0:01:10]} 30. Bf4 {[%clk 0:02:18.1]} 30...
Ne8 {[%clk 0:00:57]} 31. e5 {[%clk 0:02:18.1]} 31... fxe5 {[%clk 0:00:48.7]} 32.
Bxe5 {[%clk 0:02:19]} 32... Ke7 {[%clk 0:00:48.5]} 33. Ke4 {[%clk 0:02:19.1]}
33... g6 {[%clk 0:00:34.9]} 34. fxg6 {[%clk 0:02:18.6]} 34... hxg6 {[%clk
0:00:34.2]} 35. h4 {[%clk 0:02:19.5]} 35... Ke6 {[%clk 0:00:34.4]} 36. h5 {[%clk
0:02:19.1]} 1-0

[Event "*** Titled Tuesday Blitz"]
[Site "Chess.com"]
[Date "2021.03.30"]
[Round "4"]
[White "yoelpolanco"]
[Black "Rital44"]
[Result "0-1"]
[WhiteElo "2242"]
[BlackElo "2432"]
[TimeControl "180+1"]
[EndTime "10:36:40 PDT"]
[Termination "Rital44 won by resignation"]

1. Nf3 {[%clk 0:03:00.9]} 1... Nf6 {[%clk 0:02:58.3]} 2. c4 {[%clk 0:03:00]}
2... g6 {[%clk 0:02:59.2]} 3. Nc3 {[%clk 0:02:59.5]} 3... Bg7 {[%clk 0:03:00.1]}
4. e4 {[%clk 0:02:59.4]} 4... O-O {[%clk 0:03:01]} 5. e5 {[%clk 0:02:58.1]} 5...
Ng4 {[%clk 0:02:57.1]} 6. d4 {[%clk 0:02:58.1]} 6... c5 {[%clk 0:02:57.3]} 7. h3
{[%clk 0:02:56.8]} 7... cxd4 {[%clk 0:02:57]} 8. Qxd4 {[%clk 0:02:56.7]} 8...
Nh6 {[%clk 0:02:54.9]} 9. Bd3 {[%clk 0:02:47]} 9... Nc6 {[%clk 0:02:54.2]} 10.
Qh4 {[%clk 0:02:46.4]} 10... Nf5 {[%clk 0:02:48.5]} 11. Bxf5 {[%clk 0:02:45.8]}
11... gxf5 {[%clk 0:02:49.4]} 12. Bh6 {[%clk 0:02:45.4]} 12... e6 {[%clk
0:02:48.6]} 13. Qxd8 {[%clk 0:02:39.9]} 13... Rxd8 {[%clk 0:02:47.4]} 14. Bxg7
{[%clk 0:02:39.9]} 14... Kxg7 {[%clk 0:02:47.6]} 15. O-O-O {[%clk 0:02:40.8]}
15... f6 {[%clk 0:02:44.3]} 16. exf6+ {[%clk 0:02:40.1]} 16... Kxf6 {[%clk
0:02:45.2]} 17. Rhe1 {[%clk 0:02:32.6]} 17... a6 {[%clk 0:02:44.5]} 18. Na4
{[%clk 0:02:26.8]} 18... b5 {[%clk 0:02:41.5]} 19. Nb6 {[%clk 0:02:15.5]} 19...
Rb8 {[%clk 0:02:40.5]} 20. Nxc8 {[%clk 0:02:15.2]} 20... Rbxc8 {[%clk
0:02:41.4]} 21. cxb5 {[%clk 0:02:14.9]} 21... Nd4+ {[%clk 0:02:38.5]} 22. Kb1
{[%clk 0:02:14.5]} 22... Nxf3 {[%clk 0:02:39]} 23. gxf3 {[%clk 0:02:15.4]} 23...
axb5 {[%clk 0:02:39.2]} 24. Rg1 {[%clk 0:02:13.6]} 24... d5 {[%clk 0:02:33.8]}
25. f4 {[%clk 0:02:13.1]} 25... Rg8 {[%clk 0:02:33.1]} 26. a3 {[%clk 0:02:07.9]}
26... Rxg1 {[%clk 0:02:29.9]} 27. Rxg1 {[%clk 0:02:08.8]} 27... Rc4 {[%clk
0:02:30.1]} 28. Rg8 {[%clk 0:02:01.3]} 28... Rxf4 {[%clk 0:02:29.7]} 29. Rb8
{[%clk 0:02:00.8]} 29... b4 {[%clk 0:02:19]} 30. a4 {[%clk 0:01:59]} 30... b3
{[%clk 0:02:18.2]} 31. a5 {[%clk 0:01:53.6]} 31... Ra4 {[%clk 0:02:15.9]} 32.
Ra8 {[%clk 0:01:51.1]} 32... Ke5 {[%clk 0:02:14]} 33. a6 {[%clk 0:01:50.9]}
33... Kd4 {[%clk 0:02:13.9]} 34. a7 {[%clk 0:01:51]} 34... e5 {[%clk 0:02:14.1]}
35. h4 {[%clk 0:01:41.6]} 35... f4 {[%clk 0:02:12.2]} 36. h5 {[%clk 0:01:39.6]}
36... e4 {[%clk 0:02:11]} 37. h6 {[%clk 0:01:37.8]} 37... e3 {[%clk 0:02:08.3]}
38. fxe3+ {[%clk 0:01:35.6]} 38... fxe3 {[%clk 0:02:09.2]} 39. Rg8 {[%clk
0:01:06]} 39... Rxa7 {[%clk 0:02:06.5]} 40. Rg1 {[%clk 0:01:06.1]} 40... e2
{[%clk 0:02:04.8]} 41. Kc1 {[%clk 0:01:03.7]} 41... Ra1+ {[%clk 0:02:02.7]} 0-1

[Event "*** Titled Tuesday Blitz"]
[Site "Chess.com"]
[Date "2021.03.30"]
[Round "4"]
[White "LamaChampetre"]
[Black "jraosam"]
[Result "1-0"]
[WhiteElo "2225"]
[BlackElo "1836"]
[TimeControl "180+1"]
[EndTime "10:36:45 PDT"]
[Termination "LamaChampetre won by resignation"]

1. d4 {[%clk 0:03:00.9]} 1... d5 {[%clk 0:02:49.6]} 2. c4 {[%clk 0:02:59.8]}
2... e6 {[%clk 0:02:46.4]} 3. Nf3 {[%clk 0:02:59.7]} 3... Nf6 {[%clk 0:02:44.5]}
4. g3 {[%clk 0:02:59.8]} 4... Be7 {[%clk 0:02:44.2]} 5. Bg2 {[%clk 0:03:00.1]}
5... O-O {[%clk 0:02:43.9]} 6. O-O {[%clk 0:03:00.3]} 6... dxc4 {[%clk
0:02:43.4]} 7. Ne5 {[%clk 0:02:59.2]} 7... Nc6 {[%clk 0:02:31.2]} 8. Bxc6 {[%clk
0:02:59]} 8... bxc6 {[%clk 0:02:23.5]} 9. Nxc6 {[%clk 0:02:59.9]} 9... Qe8
{[%clk 0:02:23.2]} 10. Nxe7+ {[%clk 0:02:59.7]} 10... Qxe7 {[%clk 0:02:24.1]}
11. Qa4 {[%clk 0:03:00.1]} 11... c5 {[%clk 0:02:10.3]} 12. Qa3 {[%clk
0:02:57.1]} 12... Nd7 {[%clk 0:02:04.3]} 13. Be3 {[%clk 0:02:46.6]} 13... Bb7
{[%clk 0:01:59.7]} 14. dxc5 {[%clk 0:02:45.4]} 14... Ne5 {[%clk 0:01:55.9]} 15.
Nc3 {[%clk 0:02:33.9]} 15... Qc7 {[%clk 0:01:44.6]} 16. f3 {[%clk 0:02:18.1]}
16... Qc6 {[%clk 0:01:40.6]} 17. Rad1 {[%clk 0:01:57.7]} 17... Rfd8 {[%clk
0:01:28.5]} 18. Rd6 {[%clk 0:01:41.8]} 18... Rxd6 {[%clk 0:01:15.3]} 19. cxd6
{[%clk 0:01:41.8]} 19... Rd8 {[%clk 0:01:16.2]} 20. Qa5 {[%clk 0:01:25]} 20...
f6 {[%clk 0:01:07.5]} 21. Qxd8+ {[%clk 0:01:23.6]} 1-0

[Event "*** Titled Tuesday Blitz"]
[Site "Chess.com"]
[Date "2021.03.30"]
[Round "4"]
[White "Ali-Farahat"]
[Black "beto-betun"]
[Result "1-0"]
[WhiteElo "2414"]
[BlackElo "2219"]
[TimeControl "180+1"]
[EndTime "10:36:52 PDT"]
[Termination "Ali-Farahat won by resignation"]

1. e4 {[%clk 0:03:00.9]} 1... c5 {[%clk 0:02:54]} 2. Nf3 {[%clk 0:03:00.7]} 2...
d6 {[%clk 0:02:51.3]} 3. c3 {[%clk 0:03:00.5]} 3... Nf6 {[%clk 0:02:50.3]} 4. h3
{[%clk 0:03:00.4]} 4... g6 {[%clk 0:02:48.3]} 5. Bd3 {[%clk 0:03:00]} 5... Bg7
{[%clk 0:02:48.1]} 6. Bc2 {[%clk 0:03:00.5]} 6... O-O {[%clk 0:02:48.2]} 7. d4
{[%clk 0:02:59.7]} 7... cxd4 {[%clk 0:02:40.9]} 8. cxd4 {[%clk 0:03:00.6]} 8...
Nc6 {[%clk 0:02:41.5]} 9. O-O {[%clk 0:02:58.4]} 9... Bd7 {[%clk 0:02:37.6]} 10.
Nc3 {[%clk 0:02:58]} 10... Rc8 {[%clk 0:02:37.9]} 11. Re1 {[%clk 0:02:54.9]}
11... Qb6 {[%clk 0:02:26.8]} 12. e5 {[%clk 0:02:53.4]} 12... Ne8 {[%clk
0:02:13.1]} 13. Nd5 {[%clk 0:02:52.8]} 13... Qd8 {[%clk 0:02:12.3]} 14. Bg5
{[%clk 0:02:48.2]} 14... f6 {[%clk 0:02:00]} 15. Bh4 {[%clk 0:02:38.9]} 15... e6
{[%clk 0:01:51.6]} 16. exf6 {[%clk 0:02:22.9]} 16... Nxf6 {[%clk 0:01:45.6]} 17.
Nf4 {[%clk 0:02:17.4]} 17... Qe8 {[%clk 0:01:28.5]} 18. Bb3 {[%clk 0:02:14.1]}
18... Nd8 {[%clk 0:01:20]} 19. Ng5 {[%clk 0:02:04.1]} 19... h6 {[%clk
0:01:02.8]} 20. Ngxe6 {[%clk 0:01:57.3]} 20... Nxe6 {[%clk 0:00:59.8]} 21. Nxe6
{[%clk 0:01:57.2]} 21... Bxe6 {[%clk 0:00:39.9]} 22. Rxe6 {[%clk 0:01:54.2]} 1-0

[Event "*** Titled Tuesday Blitz"]
[Site "Chess.com"]
[Date "2021.03.30"]
[Round "4"]
[White "Andrii_Prydun"]
[Black "The_Machine04"]
[Result "1-0"]
[WhiteElo "2275"]
[BlackElo "2425"]
[TimeControl "180+1"]
[EndTime "10:37:07 PDT"]
[Termination "Andrii_Prydun won by checkmate"]

1. d4 {[%clk 0:03:00.9]} 1... d6 {[%clk 0:03:00.1]} 2. Nc3 {[%clk 0:03:01.3]}
2... Nf6 {[%clk 0:02:59.4]} 3. Bf4 {[%clk 0:03:00.7]} 3... e5 {[%clk 0:02:59.9]}
4. dxe5 {[%clk 0:03:00.4]} 4... dxe5 {[%clk 0:02:58.6]} 5. Qxd8+ {[%clk
0:03:00]} 5... Kxd8 {[%clk 0:02:59.5]} 6. Bxe5 {[%clk 0:03:00.3]} 6... Nbd7
{[%clk 0:02:45.2]} 7. O-O-O {[%clk 0:02:59.6]} 7... Bc5 {[%clk 0:02:38.2]} 8. e3
{[%clk 0:02:52]} 8... Bb6 {[%clk 0:02:36.7]} 9. Be2 {[%clk 0:02:50.8]} 9... Ke7
{[%clk 0:02:32.7]} 10. Bf4 {[%clk 0:02:50]} 10... h6 {[%clk 0:02:32.3]} 11. h4
{[%clk 0:02:45.7]} 11... a6 {[%clk 0:02:25.8]} 12. Nf3 {[%clk 0:02:45]} 12...
Nc5 {[%clk 0:02:25.7]} 13. Ne5 {[%clk 0:02:42.7]} 13... Nce4 {[%clk 0:02:23.8]}
14. Nxe4 {[%clk 0:02:35.6]} 14... Nxe4 {[%clk 0:02:23.9]} 15. Rhf1 {[%clk
0:02:35.5]} 15... g5 {[%clk 0:02:22.5]} 16. hxg5 {[%clk 0:02:06.1]} 16... hxg5
{[%clk 0:02:23.4]} 17. Bf3 {[%clk 0:02:06.8]} 17... gxf4 {[%clk 0:02:04.5]} 18.
Bxe4 {[%clk 0:02:06.3]} 18... fxe3 {[%clk 0:02:04.5]} 19. fxe3 {[%clk
0:02:05.2]} 19... Bxe3+ {[%clk 0:02:05.4]} 20. Kb1 {[%clk 0:02:05.6]} 20... Rf8
{[%clk 0:01:36.6]} 21. Bd5 {[%clk 0:01:50.6]} 21... Be6 {[%clk 0:00:13.3]} 22.
Bxb7 {[%clk 0:01:50.1]} 22... Rab8 {[%clk 0:00:13.7]} 23. Nc6+ {[%clk 0:01:50]}
23... Ke8 {[%clk 0:00:13.8]} 24. Nxb8 {[%clk 0:01:50.1]} 24... Ke7 {[%clk
0:00:12.8]} 25. Nc6+ {[%clk 0:01:50.2]} 25... Ke8 {[%clk 0:00:12.6]} 26. Rd8#
{[%clk 0:01:50.7]} 1-0

[Event "*** Titled Tuesday Blitz"]
[Site "Chess.com"]
[Date "2021.03.30"]
[Round "4"]
[White "Spriteball"]
[Black "Gabix_94"]
[Result "0-1"]
[WhiteElo "2373"]
[BlackElo "2780"]
[TimeControl "180+1"]
[EndTime "10:37:08 PDT"]
[Termination "Gabix_94 won by resignation"]

1. d4 {[%clk 0:03:00.9]} 1... d5 {[%clk 0:02:58.2]} 2. c4 {[%clk 0:03:00.5]}
2... e6 {[%clk 0:02:57.2]} 3. Nf3 {[%clk 0:03:00.1]} 3... a6 {[%clk 0:02:56.6]}
4. Qc2 {[%clk 0:02:56.2]} 4... dxc4 {[%clk 0:02:55.8]} 5. Qxc4 {[%clk 0:02:56]}
5... b5 {[%clk 0:02:56.3]} 6. Qc2 {[%clk 0:02:55.1]} 6... Bb7 {[%clk 0:02:56.5]}
7. e3 {[%clk 0:02:53]} 7... Nd7 {[%clk 0:02:55.9]} 8. Nc3 {[%clk 0:02:48.7]}
8... Rc8 {[%clk 0:02:55.8]} 9. a4 {[%clk 0:02:39.2]} 9... b4 {[%clk 0:02:55.3]}
10. Ne4 {[%clk 0:02:37.1]} 10... c5 {[%clk 0:02:47.4]} 11. Nxc5 {[%clk
0:02:30.9]} 11... Nxc5 {[%clk 0:02:44.4]} 12. dxc5 {[%clk 0:02:31.1]} 12... Bxc5
{[%clk 0:02:45.3]} 13. Qb1 {[%clk 0:02:22]} 13... Nf6 {[%clk 0:02:37.4]} 14. Bd3
{[%clk 0:02:12.2]} 14... O-O {[%clk 0:02:35.9]} 15. O-O {[%clk 0:02:11.9]} 15...
Qe7 {[%clk 0:02:36]} 16. b3 {[%clk 0:02:09.8]} 16... h6 {[%clk 0:02:31.5]} 17.
Bb2 {[%clk 0:02:08.5]} 17... Nd5 {[%clk 0:02:31.4]} 18. Rc1 {[%clk 0:02:01.5]}
18... Rfd8 {[%clk 0:02:24.1]} 19. a5 {[%clk 0:01:57.9]} 19... Nxe3 {[%clk
0:02:19.6]} 20. fxe3 {[%clk 0:01:48.4]} 20... Bxe3+ {[%clk 0:02:18.4]} 21. Kh1
{[%clk 0:01:46]} 21... Bxc1 {[%clk 0:02:15.9]} 22. Bxc1 {[%clk 0:01:26.6]} 22...
Rxc1+ {[%clk 0:02:12.8]} 23. Qxc1 {[%clk 0:01:27.5]} 23... Rxd3 {[%clk 0:02:13]}
24. Qf4 {[%clk 0:01:12.7]} 24... Bxf3 {[%clk 0:02:10.8]} 25. gxf3 {[%clk
0:01:10.5]} 25... Qb7 {[%clk 0:02:07.2]} 26. Kg2 {[%clk 0:01:01.6]} 26... e5
{[%clk 0:02:02.7]} 27. Qf5 {[%clk 0:01:00.2]} 27... g6 {[%clk 0:01:59.9]} 28.
Qf6 {[%clk 0:00:56.7]} 28... e4 {[%clk 0:02:00.1]} 29. Re1 {[%clk 0:00:41]}
29... Rxf3 {[%clk 0:01:55]} 30. Qd6 {[%clk 0:00:37.5]} 30... Rf5 {[%clk
0:01:51.7]} 31. h4 {[%clk 0:00:25.6]} 31... e3+ {[%clk 0:01:50.8]} 32. Kh2
{[%clk 0:00:25.6]} 32... Rf2+ {[%clk 0:01:49]} 0-1

[Event "*** Titled Tuesday Blitz"]
[Site "Chess.com"]
[Date "2021.03.30"]
[Round "4"]
[White "BigAl"]
[Black "Borsuk_Konstantin"]
[Result "0-1"]
[WhiteElo "2497"]
[BlackElo "2675"]
[TimeControl "180+1"]
[EndTime "10:37:11 PDT"]
[Termination "Borsuk_Konstantin won by checkmate"]

1. Nf3 {[%clk 0:03:00.9]} 1... Nf6 {[%clk 0:02:58.5]} 2. g3 {[%clk 0:03:01]}
2... b6 {[%clk 0:02:58.2]} 3. Bg2 {[%clk 0:03:01.3]} 3... Bb7 {[%clk 0:02:58.8]}
4. O-O {[%clk 0:03:01.8]} 4... g6 {[%clk 0:02:58.8]} 5. d3 {[%clk 0:03:02.4]}
5... d5 {[%clk 0:02:58.5]} 6. Nbd2 {[%clk 0:02:58.5]} 6... Bg7 {[%clk
0:02:58.4]} 7. a4 {[%clk 0:02:56.8]} 7... O-O {[%clk 0:02:54.4]} 8. a5 {[%clk
0:02:56]} 8... Re8 {[%clk 0:02:53.3]} 9. Ne5 {[%clk 0:02:37]} 9... Nfd7 {[%clk
0:02:42.8]} 10. Nxd7 {[%clk 0:02:36.7]} 10... Qxd7 {[%clk 0:02:43.1]} 11. e4
{[%clk 0:02:27.1]} 11... e5 {[%clk 0:02:37.9]} 12. Re1 {[%clk 0:02:12]} 12...
Na6 {[%clk 0:02:24.6]} 13. exd5 {[%clk 0:02:03.7]} 13... Bxd5 {[%clk 0:02:24]}
14. Bxd5 {[%clk 0:02:03.4]} 14... Qxd5 {[%clk 0:02:23.6]} 15. Ne4 {[%clk
0:01:58.6]} 15... f5 {[%clk 0:02:17.3]} 16. Nc3 {[%clk 0:01:56.5]} 16... Qc6
{[%clk 0:02:11.5]} 17. axb6 {[%clk 0:01:50.7]} 17... axb6 {[%clk 0:02:09.7]} 18.
Bd2 {[%clk 0:01:47]} 18... Nc5 {[%clk 0:02:01]} 19. Qb1 {[%clk 0:01:42.1]} 19...
Ne6 {[%clk 0:01:58.6]} 20. Rxa8 {[%clk 0:01:35.7]} 20... Rxa8 {[%clk 0:01:57]}
21. Ne2 {[%clk 0:01:35]} 21... h5 {[%clk 0:01:52.5]} 22. h4 {[%clk 0:01:21]}
22... Bf6 {[%clk 0:01:43.6]} 23. b4 {[%clk 0:01:19.8]} 23... g5 {[%clk
0:01:37.2]} 24. Qb3 {[%clk 0:01:12]} 24... Kg7 {[%clk 0:01:31.2]} 25. b5 {[%clk
0:01:11.5]} 25... Qd7 {[%clk 0:01:26.9]} 26. hxg5 {[%clk 0:01:11.4]} 26... Bxg5
{[%clk 0:01:26.8]} 27. Bc3 {[%clk 0:01:10.8]} 27... Bf6 {[%clk 0:01:25.3]} 28.
Qb2 {[%clk 0:01:06]} 28... Qd5 {[%clk 0:01:22.8]} 29. Nf4 {[%clk 0:00:55.9]}
29... Nxf4 {[%clk 0:01:22]} 30. Bxe5 {[%clk 0:00:44.1]} 30... Qg2# {[%clk
0:01:20.7]} 0-1

[Event "*** Titled Tuesday Blitz"]
[Site "Chess.com"]
[Date "2021.03.30"]
[Round "4"]
[White "Kislov_Oleg"]
[Black "GMJustin"]
[Result "1-0"]
[WhiteElo "2479"]
[BlackElo "2299"]
[TimeControl "180+1"]
[EndTime "10:37:20 PDT"]
[Termination "Kislov_Oleg won on time"]

1. e4 {[%clk 0:03:00.9]} 1... c6 {[%clk 0:02:51.6]} 2. d4 {[%clk 0:03:00.6]}
2... d5 {[%clk 0:02:51.2]} 3. Nc3 {[%clk 0:03:00.3]} 3... dxe4 {[%clk
0:02:50.7]} 4. Nxe4 {[%clk 0:03:00.9]} 4... Nf6 {[%clk 0:02:50.5]} 5. Nxf6+
{[%clk 0:02:59.9]} 5... exf6 {[%clk 0:02:51.4]} 6. c3 {[%clk 0:03:00.2]} 6...
Bd6 {[%clk 0:02:47.9]} 7. Bd3 {[%clk 0:02:58.7]} 7... O-O {[%clk 0:02:43.7]} 8.
Qc2 {[%clk 0:02:58]} 8... Re8+ {[%clk 0:02:42.7]} 9. Ne2 {[%clk 0:02:57.7]} 9...
h5 {[%clk 0:02:42.3]} 10. Be3 {[%clk 0:02:53.6]} 10... h4 {[%clk 0:02:39.1]} 11.
h3 {[%clk 0:02:46.4]} 11... Nd7 {[%clk 0:02:32.9]} 12. O-O-O {[%clk 0:02:39.2]}
12... a5 {[%clk 0:02:27.8]} 13. Rde1 {[%clk 0:02:10.7]} 13... a4 {[%clk
0:02:23.2]} 14. g3 {[%clk 0:02:09.2]} 14... b5 {[%clk 0:01:58.1]} 15. gxh4
{[%clk 0:02:06]} 15... b4 {[%clk 0:01:58]} 16. Rhg1 {[%clk 0:01:52.3]} 16... a3
{[%clk 0:00:28.1]} 17. Bc4 {[%clk 0:01:38.2]} 17... axb2+ {[%clk 0:00:24.1]} 18.
Kb1 {[%clk 0:01:37.6]} 18... Nf8 {[%clk 0:00:07.6]} 19. Bh6 {[%clk 0:01:34]}
19... g5 {[%clk 0:00:01.8]} 20. hxg5 {[%clk 0:01:30.6]} 1-0

[Event "*** Titled Tuesday Blitz"]
[Site "Chess.com"]
[Date "2021.03.30"]
[Round "4"]
[White "DenLaz"]
[Black "I_Enchev"]
[Result "1-0"]
[WhiteElo "2836"]
[BlackElo "2535"]
[TimeControl "180+1"]
[EndTime "10:37:27 PDT"]
[Termination "DenLaz won by resignation"]

1. d4 {[%clk 0:03:00.9]} 1... Nf6 {[%clk 0:02:59.7]} 2. c4 {[%clk 0:03:01.5]}
2... e6 {[%clk 0:02:59.7]} 3. Nf3 {[%clk 0:03:02.1]} 3... d5 {[%clk 0:02:59.8]}
4. Nc3 {[%clk 0:03:02.1]} 4... a6 {[%clk 0:03:00.3]} 5. cxd5 {[%clk 0:03:01.4]}
5... exd5 {[%clk 0:03:01.2]} 6. Bg5 {[%clk 0:03:01.9]} 6... Be6 {[%clk
0:03:01.6]} 7. e3 {[%clk 0:03:02]} 7... Nbd7 {[%clk 0:03:01.3]} 8. Bd3 {[%clk
0:03:02.6]} 8... Bd6 {[%clk 0:03:01.6]} 9. O-O {[%clk 0:03:00.9]} 9... O-O
{[%clk 0:03:01.1]} 10. h3 {[%clk 0:02:59.4]} 10... h6 {[%clk 0:02:59.8]} 11. Bf4
{[%clk 0:02:58.8]} 11... Qe7 {[%clk 0:02:57.9]} 12. Bxd6 {[%clk 0:02:56.1]}
12... Qxd6 {[%clk 0:02:57.5]} 13. Qc2 {[%clk 0:02:56]} 13... c5 {[%clk
0:02:51.5]} 14. dxc5 {[%clk 0:02:48.9]} 14... Nxc5 {[%clk 0:02:52.4]} 15. Nd4
{[%clk 0:02:38.5]} 15... b5 {[%clk 0:02:48.4]} 16. Rfc1 {[%clk 0:02:33.7]} 16...
Rfc8 {[%clk 0:02:47]} 17. Qd1 {[%clk 0:02:32.6]} 17... Rab8 {[%clk 0:02:44.9]}
18. Nce2 {[%clk 0:02:30.2]} 18... Nfe4 {[%clk 0:02:33.8]} 19. Nf4 {[%clk
0:02:22.6]} 19... Rc7 {[%clk 0:02:26.6]} 20. Bxe4 {[%clk 0:02:05.5]} 20... dxe4
{[%clk 0:02:09.4]} 21. b4 {[%clk 0:02:04.3]} 21... Nd3 {[%clk 0:01:57]} 22. Rxc7
{[%clk 0:01:57.6]} 22... Qxc7 {[%clk 0:01:48]} 23. Nxd3 {[%clk 0:01:46.6]} 23...
exd3 {[%clk 0:01:47.3]} 24. Qxd3 {[%clk 0:01:47.5]} 24... Bc4 {[%clk 0:01:45.9]}
25. Qe4 {[%clk 0:01:44.6]} 25... a5 {[%clk 0:01:35.4]} 26. Nc6 {[%clk
0:01:32.2]} 26... Rb6 {[%clk 0:01:30.2]} 27. Nxa5 {[%clk 0:01:20.5]} 27... Re6
{[%clk 0:01:25.9]} 28. Qa8+ {[%clk 0:01:15.9]} 28... Kh7 {[%clk 0:01:25.2]} 29.
Rc1 {[%clk 0:01:16.4]} 29... f5 {[%clk 0:01:05.7]} 30. Qf3 {[%clk 0:01:10.9]}
30... Rf6 {[%clk 0:00:59.2]} 31. a4 {[%clk 0:01:09.7]} 31... f4 {[%clk
0:00:51.8]} 32. axb5 {[%clk 0:01:08.6]} 1-0

[Event "*** Titled Tuesday Blitz"]
[Site "Chess.com"]
[Date "2021.03.30"]
[Round "4"]
[White "tteshan"]
[Black "TheCairnTerrier"]
[Result "1-0"]
[WhiteElo "2339"]
[BlackElo "2122"]
[TimeControl "180+1"]
[EndTime "10:37:29 PDT"]
[Termination "tteshan won by resignation"]

1. d4 {[%clk 0:03:00.9]} 1... Nf6 {[%clk 0:02:59.8]} 2. c4 {[%clk 0:03:01.4]}
2... g6 {[%clk 0:02:55.7]} 3. Nc3 {[%clk 0:03:01.4]} 3... Bg7 {[%clk 0:02:55.8]}
4. e4 {[%clk 0:03:01.7]} 4... d6 {[%clk 0:02:56.5]} 5. Be2 {[%clk 0:03:01.7]}
5... O-O {[%clk 0:02:57]} 6. Bg5 {[%clk 0:03:02.1]} 6... h6 {[%clk 0:02:55.3]}
7. Be3 {[%clk 0:03:01.8]} 7... Nbd7 {[%clk 0:02:43.4]} 8. Qd2 {[%clk 0:03:01.2]}
8... Kh7 {[%clk 0:02:40.3]} 9. g4 {[%clk 0:02:58.2]} 9... c5 {[%clk 0:02:38.6]}
10. d5 {[%clk 0:02:55.1]} 10... Ne5 {[%clk 0:02:35.9]} 11. g5 {[%clk 0:02:51.3]}
11... Nfg4 {[%clk 0:02:07.1]} 12. gxh6 {[%clk 0:02:46.4]} 12... Bxh6 {[%clk
0:02:06.1]} 13. Bxh6 {[%clk 0:02:45.7]} 13... Nxh6 {[%clk 0:02:04.9]} 14. h4
{[%clk 0:02:45.1]} 14... f6 {[%clk 0:01:49.3]} 15. f4 {[%clk 0:02:35.4]} 15...
Neg4 {[%clk 0:01:39.3]} 16. h5 {[%clk 0:02:34]} 16... f5 {[%clk 0:01:06.5]} 17.
hxg6+ {[%clk 0:02:31.7]} 17... Kxg6 {[%clk 0:01:07]} 18. Nf3 {[%clk 0:02:25.8]}
18... e6 {[%clk 0:01:04.8]} 19. dxe6 {[%clk 0:02:17.8]} 19... Bxe6 {[%clk
0:01:04.2]} 20. exf5+ {[%clk 0:02:17.3]} 20... Bxf5 {[%clk 0:01:03.3]} 21. Nh4+
{[%clk 0:02:16.9]} 21... Kg7 {[%clk 0:01:01.6]} 22. Nxf5+ {[%clk 0:02:15.1]}
22... Rxf5 {[%clk 0:01:02.5]} 23. O-O-O {[%clk 0:02:06.8]} 23... Qf6 {[%clk
0:00:45.6]} 24. Rdg1 {[%clk 0:02:02.4]} 24... Qg6 {[%clk 0:00:15.1]} 25. Rxh6
{[%clk 0:01:54.7]} 25... Qxh6 {[%clk 0:00:12.5]} 26. Bxg4 {[%clk 0:01:48.7]}
26... Rf6 {[%clk 0:00:11.1]} 27. Bf3+ {[%clk 0:01:34.5]} 27... Rg6 {[%clk
0:00:09.9]} 28. Rh1 {[%clk 0:01:34.7]} 1-0